[Event "ONJK U25"]
[Site "Enschede, Netherlands"]
[Date "2022.08.10"]
[Round "4.3"]
[White "Nijdam, Brian"]
[Black "Andringa, Jibbe"]
[Result "1-0"]
[TimeControl "90min + 30sec/move"]
[WhiteElo "1749"]
[BlackElo "1000"]

1. e4 {[%clk 01:30:59]} c5 {[%clk 01:30:59]} {[%emt 00:00:02]} 2. d4 {[%clk
01:30:54]} {[%emt 00:00:35]} cxd4 {[%emt 00:00:14]} 3. c3 {[%emt 00:00:05]}
dxc3 {[%clk 01:30:39]} {[%emt 00:00:29]} 4. Nxc3 {[%clk 01:31:18]} {[%emt
00:00:06]} e5 {[%clk 01:30:46]} {[%emt 00:00:25]} 5. Bc4 {[%clk 01:31:42]}
{[%emt 00:00:06]} Nf6 {[%clk 01:30:32]} {[%emt 00:00:43]} 6. Nf3 {[%clk
01:31:09]} {[%emt 00:01:03]} Bb4 {[%clk 01:23:40]} {[%emt 00:07:22]} 7. Bxf7+
{[%clk 01:25:43]} {[%emt 00:05:56]} Kxf7 {[%clk 01:21:32]} {[%emt 00:02:37]} 8.
Qb3+ {[%clk 01:25:43]} {[%emt 00:00:31]} d5 {[%clk 01:19:14]} {[%emt 00:02:50]}
9. Qxb4 {[%clk 01:20:09]} {[%emt 00:06:04]} Nc6 {[%clk 01:17:47]} {[%emt
00:01:56]} 10. Qb3 {[%clk 01:20:00]} {[%emt 00:00:38]} Re8 {[%emt 00:08:54]} 11.
O-O {[%clk 01:14:52]} {[%emt 00:00:01]} Na5 {[%clk 01:11:59]} {[%emt 00:03:32]}
12. Qc2 {[%clk 01:12:54]} {[%emt 00:02:27]} Kg8 {[%clk 01:07:50]} {[%emt
00:04:41]} 13. Nxd5 {[%clk 01:08:11]} {[%emt 00:05:13]} Nxd5 {[%clk 01:06:00]}
{[%emt 00:02:00]} 14. exd5 {[%clk 01:08:28]} {[%emt 00:00:33]} Qxd5 {[%clk
01:04:52]} {[%emt 00:01:37]} 15. Rd1 {[%clk 01:04:00]} {[%emt 00:04:57]} Qc6
{[%clk 00:58:56]} {[%emt 00:06:28]} 16. Qxc6 {[%clk 00:47:51]} {[%emt
00:16:40]} Nxc6 {[%clk 00:59:01]} {[%emt 00:00:23]} 17. h3 {[%clk 00:46:41]}
{[%emt 00:01:40]} Bf5 {[%clk 00:55:17]} {[%emt 00:04:15]} 18. Bg5 {[%clk
00:46:18]} {[%emt 00:00:53]} e4 {[%clk 00:52:53]} {[%emt 00:02:54]} 19. Nd4
{[%clk 00:46:17]} {[%emt 00:00:31]} Nxd4 {[%clk 00:52:47]} {[%emt 00:00:36]} 20.
Rxd4 {[%clk 00:46:43]} {[%emt 00:00:04]} Rac8 {[%clk 00:51:52]} {[%emt
00:01:25]} 21. g4 {[%clk 00:45:01]} {[%emt 00:02:12]} Bg6 {[%clk 00:51:21]}
{[%emt 00:01:00]} 22. Rd7 {[%clk 00:44:40]} {[%emt 00:00:50]} Re5 {[%clk
00:49:30]} {[%emt 00:02:23]} 23. Be3 {[%clk 00:41:48]} {[%emt 00:03:20]} Rb5
{[%clk 00:47:11]} {[%emt 00:02:51]} 24. Bd4 {[%clk 00:41:45]} {[%emt 00:00:31]}
Bf7 {[%clk 00:44:03]} {[%emt 00:03:39]} 25. Rd1 {[%clk 00:40:52]} {[%emt
00:01:22]} h5 {[%clk 00:41:33]} {[%emt 00:03:02]} 26. Bc3 {[%clk 00:34:25]}
{[%emt 00:06:57]} hxg4 {[%clk 00:39:21]} {[%emt 00:02:41]} 27. hxg4 {[%clk
00:34:27]} {[%emt 00:00:29]} Rg5 {[%clk 00:38:58]} {[%emt 00:00:53]} 28. Rxb7
{[%clk 00:33:51]} {[%emt 00:01:04]} Rxg4+ {[%clk 00:38:32]} {[%emt 00:00:57]}
29. Kh2 {[%clk 00:27:52]} {[%emt 00:06:29]} Rc6 {[%clk 00:37:05]} {[%emt
00:01:58]} 30. Rd8+ {[%clk 00:27:01]} {[%emt 00:01:21]} Kh7 {[%clk 00:37:10]}
{[%emt 00:00:25]} 31. Bd2 {[%clk 00:26:25]} {[%emt 00:01:06]} Rf6 {[%clk
00:33:20]} {[%emt 00:04:20]} 32. Re7 {[%clk 00:19:38]} {[%emt 00:07:18]} Rxf2+
{[%emt 00:01:19]} 33. Kh3 {[%emt 00:00:32]} Bh5 {[%clk 00:25:40]} {[%emt
00:06:19]} 34. Rd5 {[%clk 00:18:56]} {[%emt 00:01:09]} Rf3+ {[%clk 00:24:04]}
{[%emt 00:02:08]} 35. Kh2 {[%clk 00:19:22]} {[%emt 00:00:05]} Bg6 {[%clk
00:21:59]} {[%emt 00:02:34]} 36. Rg5 {[%clk 00:18:08]} {[%emt 00:01:44]} Rxg5
{[%clk 00:18:32]} {[%emt 00:03:55]} 37. Bxg5 {[%clk 00:18:34]} {[%emt
00:00:06]} Rf2+ {[%clk 00:18:23]} {[%emt 00:00:39]} 38. Kg3 {[%clk 00:18:56]}
{[%emt 00:00:08]} Rxb2 {[%clk 00:17:47]} {[%emt 00:01:05]} 39. Rxa7 {[%clk
00:19:15]} {[%emt 00:00:12]} Bf5 {[%clk 00:17:32]} {[%emt 00:00:46]} 40. Bf6
{[%clk 00:19:25]} {[%emt 00:00:20]} Rb6 {[%clk 00:16:50]} {[%emt 00:01:13]} 41.
Rxg7+ {[%clk 00:18:23]} {[%emt 00:01:31]} Kh6 {[%clk 00:16:43]} {[%emt
00:00:38]} 42. Bd4 {[%clk 00:18:35]} {[%emt 00:00:17]} Rd6 {[%clk 00:16:47]}
{[%emt 00:00:28]} 43. Rf7 {[%clk 00:16:55]} {[%emt 00:02:08]} Bg6 {[%clk
00:13:52]} {[%emt 00:03:26]} 44. Be3+ {[%clk 00:17:05]} {[%emt 00:00:21]} Kh5
{[%clk 00:13:13]} {[%emt 00:01:09]} 45. Rf4 {[%clk 00:17:27]} {[%emt 00:00:08]}
Kh6 {[%clk 00:10:22]} {[%emt 00:03:21]} 46. Rf6+ {[%clk 00:17:46]} {[%emt
00:00:10]} Kg7 {[%clk 00:09:41]} {[%emt 00:01:11]} 47. Rxd6 {[%clk 00:18:10]}
{[%emt 00:00:06]} Kf7 {[%clk 00:09:37]} {[%emt 00:00:34]} 48. Kf4 {[%clk
00:18:23]} {[%emt 00:00:17]} Bh7 {[%clk 00:09:24]} {[%emt 00:00:45]} 49. Rd7+
{[%clk 00:18:00]} {[%emt 00:00:52]} Kg8 {[%clk 00:09:37]} {[%emt 00:00:17]} 50.
Rxh7 {[%clk 00:18:17]} {[%emt 00:00:13]} Kxh7 {[%clk 00:10:01]} {[%emt
00:00:04]} 51. a4 {[%clk 00:18:38]} {[%emt 00:00:10]} Kh6 {[%clk 00:09:58]}
{[%emt 00:00:34]} 52. a5 {[%clk 00:19:01]} {[%emt 00:00:08]} Kh5 {[%clk
00:10:20]} {[%emt 00:00:07]} 53. a6 {[%clk 00:19:23]} {[%emt 00:00:08]} Kh4
{[%clk 00:10:43]} {[%emt 00:00:07]} 54. a7 {[%clk 00:19:47]} {[%emt 00:00:06]}
Kh3 {[%clk 00:11:01]} {[%emt 00:00:12]} 55. a8=Q {[%clk 00:19:51]} {[%emt
00:00:26]} Kh2 {[%clk 00:11:17]} {[%emt 00:00:14]} 56. Qa1 {[%clk 00:19:51]}
{[%emt 00:00:30]} Kg2 {[%clk 00:11:27]} {[%emt 00:00:20]} 57. Qg1+ {[%clk
00:20:12]} {[%emt 00:00:09]} Kh3 {[%clk 00:11:38]} {[%emt 00:00:19]} 58. Qh1+
{[%clk 00:20:33]} {[%emt 00:00:10]} 1-0

[Event "ONJK U25"]
[Site "Enschede, Netherlands"]
[Date "2022.08.10"]
[Round "4.4"]
[White "Van Iersel, Yorn"]
[Black "Heskes, Johan"]
[Result "1/2-1/2"]
[TimeControl "90min + 30sec/move"]
[WhiteElo "1419"]
[BlackElo "1566"]

1. e4 {[%clk 01:30:58]} {[%emt 00:00:01]} e5 {[%clk 01:30:59]} {[%emt
00:00:02]} 2. Nf3 {[%clk 01:31:12]} {[%emt 00:00:16]} f5 {[%clk 01:31:24]}
{[%emt 00:00:05]} 3. d4 {[%clk 01:18:33]} {[%emt 00:13:09]} fxe4 {[%clk
01:31:34]} {[%emt 00:00:19]} 4. Nxe5 {[%clk 01:18:44]} {[%emt 00:00:20]} Nf6
{[%clk 01:31:58]} {[%emt 00:00:06]} 5. Nc4 {[%clk 01:09:04]} {[%emt 00:10:10]}
d5 {[%clk 01:31:46]} {[%emt 00:00:42]} 6. Ne3 {[%clk 01:09:24]} {[%emt
00:00:11]} Be7 {[%clk 01:31:46]} {[%emt 00:00:29]} 7. c4 {[%clk 01:09:44]}
{[%emt 00:00:11]} c6 {[%clk 01:32:08]} {[%emt 00:00:07]} 8. Nc3 {[%clk
01:09:34]} {[%emt 00:00:40]} O-O {[%clk 01:32:13]} {[%emt 00:00:26]} 9. Be2
{[%clk 01:09:52]} {[%emt 00:00:12]} Be6 {[%clk 01:32:12]} {[%emt 00:00:30]} 10.
Qc2 {[%clk 01:09:17]} {[%emt 00:01:06]} Na6 {[%clk 01:29:16]} {[%emt 00:03:26]}
11. a3 {[%clk 01:07:10]} {[%emt 00:02:37]} Nc7 {[%clk 01:29:32]} {[%emt
00:00:14]} 12. O-O {[%clk 01:06:56]} {[%emt 00:00:44]} Rc8 {[%clk 01:28:02]}
{[%emt 00:02:00]} 13. f3 {[%clk 01:00:37]} {[%emt 00:06:48]} exf3 {[%clk
01:27:36]} {[%emt 00:00:56]} 14. Bxf3 {[%clk 01:00:50]} {[%emt 00:00:18]} dxc4
{[%clk 01:27:14]} {[%emt 00:00:52]} 15. Ne2 {[%clk 00:58:04]} {[%emt 00:03:16]}
b5 {[%clk 01:26:00]} {[%emt 00:01:44]} 16. Bxc6 {[%clk 00:56:00]} {[%emt
00:02:34]} Nfd5 {[%clk 01:25:35]} {[%emt 00:00:55]} 17. Rxf8+ {[%clk 00:54:30]}
{[%emt 00:02:00]} Bxf8 {[%clk 01:24:49]} {[%emt 00:01:15]} 18. Nxd5 {[%clk
00:54:14]} {[%emt 00:00:46]} Bxd5 {[%clk 01:25:02]} {[%emt 00:00:16]} 19. Bxd5+
{[%clk 00:54:17]} {[%emt 00:00:28]} Nxd5 {[%clk 01:24:52]} {[%emt 00:00:40]} 20.
Bd2 {[%clk 00:50:31]} {[%emt 00:04:16]} a5 {[%clk 01:24:56]} {[%emt 00:00:26]}
21. Qf5 {[%clk 00:49:55]} {[%emt 00:01:06]} b4 {[%clk 01:24:02]} {[%emt
00:01:23]} 22. axb4 {[%clk 00:48:46]} {[%emt 00:01:39]} axb4 {[%clk 01:23:31]}
{[%emt 00:01:02]} 23. Ra7 {[%clk 00:46:39]} {[%emt 00:02:37]} Nb6 {[%clk
01:14:15]} {[%emt 00:09:46]} 24. Bxb4 {[%clk 00:42:47]} {[%emt 00:04:22]} Qf6
{[%clk 01:12:44]} {[%emt 00:02:01]} 25. Qxf6 {[%clk 00:42:36]} {[%emt
00:00:41]} gxf6 {[%clk 01:13:07]} {[%emt 00:00:07]} 26. Bxf8 {[%clk 00:41:15]}
{[%emt 00:01:50]} Rxf8 {[%clk 01:13:20]} {[%emt 00:00:18]} 27. b3 {[%clk
00:39:17]} {[%emt 00:02:28]} cxb3 {[%clk 01:13:25]} {[%emt 00:00:25]} 28. Rb7
{[%clk 00:39:41]} {[%emt 00:00:06]} Nd5 {[%clk 01:12:24]} {[%emt 00:01:31]} 29.
Rxb3 {[%clk 00:39:51]} {[%emt 00:00:20]} Kf7 {[%clk 01:12:46]} {[%emt
00:00:08]} 30. Kf2 {[%clk 00:39:30]} {[%emt 00:00:51]} Re8 {[%clk 01:12:55]}
{[%emt 00:00:21]} 31. Kf3 {[%clk 00:39:34]} {[%emt 00:00:25]} f5 {[%clk
01:12:43]} {[%emt 00:00:42]} 32. Rb7+ {[%clk 00:39:25]} {[%emt 00:00:40]} Kg6
{[%clk 01:12:38]} {[%emt 00:00:34]} 33. Rd7 {[%clk 00:39:14]} {[%emt 00:00:41]}
Nf6 {[%clk 01:12:04]} {[%emt 00:01:05]} 34. Nf4+ {[%clk 00:39:12]} {[%emt
00:00:32]} Kh6 {[%clk 01:11:19]} {[%emt 00:01:14]} 35. Rd6 {[%clk 00:34:34]}
{[%emt 00:05:09]} Kg7 {[%clk 01:11:05]} {[%emt 00:00:44]} 36. h3 {[%clk
00:34:21]} {[%emt 00:00:43]} Re1 {[%clk 01:10:26]} {[%emt 00:01:08]} 37. g3
{[%clk 00:32:52]} {[%emt 00:02:00]} Rg1 {[%clk 01:09:22]} {[%emt 00:01:33]} 38.
Re6 {[%clk 00:31:43]} {[%emt 00:01:40]} Rd1 {[%clk 01:08:30]} {[%emt 00:01:21]}
39. Re3 {[%clk 00:30:35]} {[%emt 00:01:39]} Ne4 {[%clk 01:06:00]} {[%emt
00:03:00]} 40. Rd3 {[%clk 00:27:52]} {[%emt 00:03:12]} Rf1+ {[%clk 01:05:14]}
{[%emt 00:01:16]} 41. Kg2 {[%clk 00:27:36]} {[%emt 00:00:46]} Rf2+ {[%clk
01:05:28]} {[%emt 00:00:16]} 42. Kg1 {[%clk 00:27:56]} {[%emt 00:00:10]} Ra2
{[%clk 01:05:35]} {[%emt 00:00:23]} 43. d5 {[%clk 00:27:28]} {[%emt 00:00:59]}
Nd6 {[%clk 01:03:03]} {[%emt 00:03:01]} 44. Re3 {[%clk 00:25:17]} {[%emt
00:02:41]} Ne4 {[%clk 01:02:07]} {[%emt 00:01:27]} 45. g4 {[%clk 00:24:46]}
{[%emt 00:01:01]} Kf6 {[%clk 01:02:26]} {[%emt 00:00:11]} 46. Re1 {[%clk
00:18:38]} {[%emt 00:06:38]} Rd2 {[%clk 01:01:40]} {[%emt 00:01:14]} 47. Rf1
{[%clk 00:17:18]} {[%emt 00:01:52]} Ke5 {[%clk 01:01:00]} {[%emt 00:01:10]} 48.
gxf5 {[%clk 00:15:42]} {[%emt 00:02:05]} Kxf5 {[%clk 01:00:30]} {[%emt
00:01:00]} 49. Nd3+ {[%clk 00:15:09]} {[%emt 00:01:03]} Kg6 {[%clk 00:59:51]}
{[%emt 00:01:09]} 50. Rf3 {[%clk 00:14:27]} {[%emt 00:01:12]} h5 {[%clk
00:58:04]} {[%emt 00:02:17]} 51. h4 {[%clk 00:14:17]} {[%emt 00:00:41]} Nd6
{[%clk 00:56:32]} {[%emt 00:02:01]} 52. Kf1 {[%clk 00:14:23]} {[%emt 00:00:24]}
Rh2 {[%clk 00:55:21]} {[%emt 00:01:40]} 53. Re3 {[%clk 00:14:31]} {[%emt
00:00:22]} Kf5 {[%clk 00:54:57]} {[%emt 00:00:55]} 54. Re5+ {[%clk 00:14:47]}
{[%emt 00:00:15]} Kg4 {[%clk 00:54:54]} {[%emt 00:00:32]} 55. Re6 {[%clk
00:14:52]} {[%emt 00:00:25]} Nf5 {[%clk 00:54:22]} {[%emt 00:01:02]} 56. Re4+
{[%clk 00:14:02]} {[%emt 00:01:20]} Kg3 {[%clk 00:53:29]} {[%emt 00:01:22]} 57.
Ke1 {[%clk 00:11:27]} {[%emt 00:03:07]} Rxh4 {[%clk 00:52:08]} {[%emt
00:01:50]} 1/2-1/2

[Event "ONJK U25"]
[Site "Enschede, Netherlands"]
[Date "2022.08.10"]
[Round "4.5"]
[White "Meulenkolk, Jan-Geert"]
[Black "Gesthuizen, Ward"]
[Result "0-1"]
[TimeControl "90min + 30sec/move"]
[WhiteElo "1681"]
[BlackElo "1600"]

1. e4 {[%clk 01:30:54]} {[%emt 00:00:05]} c6 {[%clk 01:30:44]} {[%emt
00:00:17]} 2. d4 {[%clk 01:31:14]} {[%emt 00:00:10]} d5 {[%clk 01:31:07]}
{[%emt 00:00:07]} 3. e5 {[%clk 01:31:18]} {[%emt 00:00:26]} c5 {[%clk
01:31:25]} {[%emt 00:00:13]} 4. c3 {[%clk 01:30:59]} {[%emt 00:00:48]} Nc6
{[%clk 01:30:39]} {[%emt 00:01:16]} 5. Nf3 {[%clk 01:30:20]} {[%emt 00:01:09]}
Bg4 {[%clk 01:27:06]} {[%emt 00:04:04]} 6. Bb5 {[%clk 01:25:35]} {[%emt
00:05:14]} e6 {[%clk 01:25:46]} {[%emt 00:01:50]} 7. O-O {[%clk 01:24:12]}
{[%emt 00:01:52]} Nge7 {[%clk 01:22:52]} {[%emt 00:03:24]} 8. Bf4 {[%clk
01:18:33]} {[%emt 00:06:09]} Qb6 {[%clk 01:17:46]} {[%emt 00:05:36]} 9. Qa4
{[%clk 01:00:26]} {[%emt 00:18:37]} Bxf3 {[%clk 01:16:24]} {[%emt 00:01:53]} 10.
dxc5 {[%clk 00:57:56]} {[%emt 00:02:59]} Qc7 {[%clk 01:14:00]} {[%emt
00:02:55]} 11. gxf3 {[%clk 00:57:15]} {[%emt 00:01:10]} a6 {[%clk 01:06:13]}
{[%emt 00:08:17]} 12. Bxc6+ {[%clk 00:56:19]} {[%emt 00:01:26]} Nxc6 {[%clk
01:06:21]} {[%emt 00:00:21]} 13. b4 {[%clk 00:53:32]} {[%emt 00:03:17]} Be7
{[%clk 00:59:58]} {[%emt 00:06:54]} 14. c4 {[%clk 00:52:33]} {[%emt 00:01:28]}
dxc4 {[%clk 00:54:27]} {[%emt 00:06:01]} 15. Nc3 {[%clk 00:51:38]} {[%emt
00:01:25]} O-O {[%clk 00:52:49]} {[%emt 00:02:08]} 16. Rfe1 {[%clk 00:48:50]}
{[%emt 00:03:19]} Nd4 {[%clk 00:46:13]} {[%emt 00:07:05]} 17. Kg2 {[%clk
00:46:57]} {[%emt 00:02:22]} a5 {[%clk 00:43:29]} {[%emt 00:03:15]} 18. Nb5
{[%clk 00:42:59]} {[%emt 00:04:28]} Qc6 {[%clk 00:40:19]} {[%emt 00:03:40]} 19.
Nc3 {[%clk 00:42:35]} {[%emt 00:00:53]} Qxf3+ {[%clk 00:38:57]} {[%emt
00:01:53]} 20. Kg1 {[%clk 00:42:22]} {[%emt 00:00:43]} Qxc3 {[%clk 00:35:17]}
{[%emt 00:04:10]} 0-1

[Event "ONJK U25"]
[Site "Enschede, Netherlands"]
[Date "2022.08.10"]
[Round "4.6"]
[White "Smidt, Hana"]
[Black "Van Randtwijk, Mick"]
[Result "0-1"]
[TimeControl "90min + 30sec/move"]
[WhiteElo "1594"]
[BlackElo "2057"]

1. e4 {[%clk 01:30:59]} c5 {[%clk 01:30:47]} {[%emt 00:00:13]} 2. Nf3 {[%clk
01:31:05]} {[%emt 00:00:23]} d6 {[%clk 01:31:02]} {[%emt 00:00:16]} 3. c3
{[%clk 01:31:15]} {[%emt 00:00:20]} Nc6 {[%clk 01:30:26]} {[%emt 00:01:06]} 4.
d4 {[%clk 01:31:32]} {[%emt 00:00:13]} cxd4 {[%clk 01:30:29]} {[%emt 00:00:26]}
5. cxd4 {[%clk 01:31:55]} {[%emt 00:00:07]} g6 {[%clk 01:30:02]} {[%emt
00:00:57]} 6. Bb5 {[%clk 01:31:19]} {[%emt 00:01:07]} a6 {[%clk 01:29:22]}
{[%emt 00:01:10]} 7. Ba4 {[%clk 01:31:32]} {[%emt 00:00:17]} Bd7 {[%clk
01:27:37]} {[%emt 00:02:14]} 8. O-O {[%clk 01:30:45]} {[%emt 00:01:17]} Bg7
{[%clk 01:27:09]} {[%emt 00:00:58]} 9. Be3 {[%clk 01:30:52]} {[%emt 00:00:23]}
Nf6 {[%clk 01:26:21]} {[%emt 00:01:18]} 10. Nc3 {[%clk 01:30:05]} {[%emt
00:01:18]} b5 {[%clk 01:25:33]} {[%emt 00:01:18]} 11. Bb3 {[%clk 01:30:11]}
{[%emt 00:00:24]} b4 {[%clk 01:23:55]} {[%emt 00:02:07]} 12. Nd5 {[%clk
01:25:16]} {[%emt 00:05:25]} Nxe4 {[%clk 01:23:44]} {[%emt 00:00:42]} 13. Qc1
{[%clk 01:23:55]} {[%emt 00:01:51]} O-O {[%clk 01:19:07]} {[%emt 00:05:07]} 14.
Bh6 {[%clk 01:24:03]} {[%emt 00:00:22]} e6 {[%clk 01:18:34]} {[%emt 00:01:03]}
15. Bxg7 {[%clk 01:22:08]} {[%emt 00:02:25]} Kxg7 {[%clk 01:18:42]} {[%emt
00:00:22]} 16. Ne3 {[%clk 01:21:34]} {[%emt 00:01:04]} d5 {[%clk 01:15:43]}
{[%emt 00:03:29]} 17. Ng4 {[%clk 01:20:51]} {[%emt 00:01:12]} Rc8 {[%clk
01:14:45]} {[%emt 00:01:28]} 18. Qh6+ {[%clk 01:21:08]} {[%emt 00:00:13]} Kh8
{[%clk 01:13:00]} {[%emt 00:02:15]} 19. Bc2 {[%emt 00:05:11]} f5 {[%clk
01:09:18]} 20. Bxe4 {[%clk 01:20:14]} {[%emt 00:00:56]} dxe4 {[%clk 01:09:40]}
{[%emt 00:00:07]} 21. Ng5 {[%clk 01:20:17]} {[%emt 00:00:27]} Qe7 {[%clk
01:09:43]} {[%emt 00:00:27]} 22. Ne5 {[%clk 01:20:12]} {[%emt 00:00:35]} Nxe5
{[%clk 01:10:06]} {[%emt 00:00:06]} 23. dxe5 {[%clk 01:20:35]} {[%emt
00:00:08]} Qg7 {[%clk 01:09:39]} {[%emt 00:00:57]} 24. Qxg7+ {[%clk 01:20:39]}
{[%emt 00:00:26]} Kxg7 {[%clk 01:09:54]} {[%emt 00:00:15]} 25. Rfd1 {[%clk
01:20:27]} {[%emt 00:00:42]} Rfd8 {[%clk 01:06:41]} {[%emt 00:03:42]} 26. Rd6
{[%clk 01:19:30]} {[%emt 00:01:27]} h6 {[%clk 01:07:02]} {[%emt 00:00:09]} 27.
Nxe6+ {[%clk 01:19:23]} {[%emt 00:00:36]} Bxe6 {[%clk 01:07:28]} {[%emt
00:00:05]} 28. Rxe6 {[%clk 01:19:40]} {[%emt 00:00:13]} Rd2 {[%clk 01:07:40]}
{[%emt 00:00:18]} 29. Rxa6 {[%clk 01:19:29]} {[%emt 00:00:40]} Rcc2 {[%clk
01:06:48]} {[%emt 00:01:23]} 30. b3 {[%clk 00:48:58]} {[%emt 00:31:02]} Rxf2
{[%clk 01:05:40]} {[%emt 00:01:38]} 31. Rb6 {[%clk 00:47:19]} {[%emt 00:02:09]}
Rxg2+ {[%clk 01:05:57]} {[%emt 00:00:13]} 32. Kh1 {[%clk 00:47:23]} {[%emt
00:00:26]} Rxh2+ {[%clk 01:06:22]} {[%emt 00:00:05]} 33. Kg1 {[%clk 00:47:48]}
{[%emt 00:00:05]} Rcg2+ {[%clk 01:06:36]} {[%emt 00:00:16]} 34. Kf1 {[%clk
00:47:53]} {[%emt 00:00:25]} e3 {[%clk 01:07:02]} {[%emt 00:00:03]} 35. Rc1
{[%clk 00:48:06]} {[%emt 00:00:18]} e2+ {[%clk 01:07:25]} {[%emt 00:00:07]} 36.
Ke1 {[%clk 00:48:22]} {[%emt 00:00:15]} Rh1+ {[%clk 01:07:47]} {[%emt
00:00:07]} 37. Kd2 {[%clk 00:47:06]} {[%emt 00:01:45]} e1=Q+ {[%clk 01:08:10]}
{[%emt 00:00:07]} 38. Kd3 {[%clk 00:47:28]} {[%emt 00:00:08]} Qe4# {[%clk
01:08:35]} {[%emt 00:00:05]} 0-1